fUST/lending_fUST_20240818
["ID","MTS","AMOUNT","RATE_DAILY","PERIOD"]
[335196426,1723972241979,-500.0,0.00017073,2]
[335196427,1723972241988,-500.0,0.00017073,2]
[335196428,1723972241998,-500.0,0.00017073,2]
[335196429,1723972242007,-500.0,0.00017073,2]
[335196430,1723972242017,-576.34,0.00017073,2]
[335196431,1723972242026,-746.6,0.00017073,2]
[335196432,1723972242035,-500.0,0.00017073,2]
[335196433,1723972242048,-522.86101654,0.00017073,2]
[335196434,1723972242058,-545.45,0.00017073,2]
[335196435,1723972242068,-500.0,0.00017073,2]
[335196436,1723972242078,-571.46,0.00017073,2]
[335196437,1723972242088,-500.0,0.00017073,2]
[335196438,1723972242098,-500.0,0.00017073,2]
[335196439,1723972242107,-534.36,0.00017073,2]
[335196440,1723972242118,-828.94,0.00017073,2]
[335196441,1723972242128,-500.0,0.00017073,2]
[335196442,1723972242139,-644.57777291,0.00017073,2]
[335196443,1723972242148,-500.0,0.00017073,2]
[335196444,1723972242158,-500.0,0.00017073,2]
[335196445,1723972242167,-500.0,0.00017073,2]
[335196446,1723972242178,-500.0,0.00017073,2]
[335196447,1723972242187,-500.0,0.00017073,2]
[335196448,1723972242198,-500.0,0.00017073,2]
[335196449,1723972242209,-500.0,0.00017073,2]
[335196450,1723972242222,-500.0,0.00017073,2]
[335196451,1723972242233,-500.0,0.00017073,2]
[335196452,1723972242243,-500.0,0.00017073,2]
[335196453,1723972242252,-387.07763112,0.00017073,2]
[335196454,1723972242261,-500.0,0.00017073,2]
[335196455,1723972242271,-745.97,0.00017073,2]
[335196456,1723972242280,-500.0,0.00017073,2]
[335196457,1723972242293,-500.0,0.00017073,2]
[335196458,1723972242303,-500.0,0.00017073,2]
[335196459,1723972242314,-500.0,0.00017073,2]
[335196460,1723972242325,-500.0,0.00017073,2]
[335196461,1723972242335,-530.35646287,0.00017073,2]
[335196462,1723972242345,-521.18586828,0.00017073,2]
[335196463,1723972242355,-500.0,0.00017073,2]
[335196464,1723972242365,-552.04,0.00017073,2]
[335196465,1723972242375,-500.0,0.00017073,2]
[335196466,1723972242386,-500.0,0.00017073,2]
[335196467,1723972242398,-500.0,0.00017073,2]
[335196468,1723972242410,-500.0,0.00017073,2]
[335196469,1723972242430,-500.0,0.00017073,2]
[335196470,1723972242440,-500.0,0.00017073,2]
[335196471,1723972242450,-500.0,0.00017073,2]
[335196472,1723972242459,-500.0,0.00017073,2]
[335196473,1723972242471,-596.88,0.00017073,2]
[335196474,1723972242480,-500.0,0.00017073,2]
[335196475,1723972242490,-500.0,0.00017073,2]
[335196476,1723972242499,-500.0,0.00017073,2]
[335196477,1723972242509,-500.0,0.00017073,2]
[335196478,1723972242518,-666.21,0.00017073,2]
[335196479,1723972242528,-500.0,0.00017073,2]
[335196480,1723972242537,-503.20444403,0.00017073,2]
[335196481,1723972242549,-908.55,0.00017073,2]
[335196482,1723972242560,-1000.0,0.00017073,2]
[335196483,1723972242569,-506.70627482,0.00017073,2]
[335196484,1723972242579,-500.0,0.00017073,2]
[335196485,1723972242588,-500.0,0.00017073,2]
[335196486,1723972242598,-500.0,0.00017073,2]
[335196487,1723972242606,-500.0,0.00017073,2]
[335196488,1723972242615,-500.0,0.00017073,2]
[335196489,1723972242625,-500.0,0.00017073,2]
[335196490,1723972242634,-500.0,0.00017073,2]
[335196491,1723972242643,-516.15,0.00017073,2]
[335196492,1723972242652,-500.0,0.00017073,2]
[335196493,1723972242662,-500.0,0.00017073,2]
[335196494,1723972242671,-500.0,0.00017073,2]
[335196495,1723972242680,-632.06211442,0.00017073,2]
[335196496,1723972242690,-809.29,0.00017073,2]
[335196497,1723972242699,-500.0,0.00017073,2]
[335196498,1723972242708,-502.12800461,0.00017073,2]
[335196499,1723972242718,-979.6,0.00017073,2]
[335196500,1723972242727,-500.65763525,0.00017073,2]
[335196501,1723972242737,-500.0,0.00017073,2]
[335196502,1723972242747,-500.0,0.00017073,2]
[335196503,1723972242757,-500.0,0.00017073,2]
[335196504,1723972242766,-500.0,0.00017073,2]
[335196505,1723972242776,-500.0,0.00017073,2]
[335196506,1723972242787,-501.64080858,0.00017073,2]
[335196507,1723972242797,-500.0,0.00017073,2]
[335196508,1723972242806,-648.23834614,0.00017073,2]
[335196509,1723972242816,-543.15,0.00017073,2]
[335196510,1723972242825,-500.0,0.00017073,2]
[335196511,1723972242835,-500.0,0.00017073,2]
[335196512,1723972242844,-500.0,0.00017073,2]
[335196513,1723972242853,-500.0,0.00017073,2]
[335196514,1723972242863,-500.0,0.00017073,2]
[335196515,1723972242872,-500.0,0.00017073,2]
[335196516,1723972242881,-500.0,0.00017073,2]
[335196517,1723972242891,-500.0,0.00017073,2]
[335196518,1723972242901,-711.8,0.00017073,2]
[335196519,1723972242911,-500.0,0.00017073,2]
[335196520,1723972242920,-500.0,0.00017073,2]
[335196521,1723972242929,-500.0,0.00017073,2]
[335196522,1723972243041,-500.0,0.00017073,2]
[335196523,1723972243052,-500.0,0.00017073,2]
[335196524,1723972243061,-500.0,0.00017073,2]
[335196525,1723972243071,-500.0,0.00017073,2]
[335196526,1723972243081,-502.34132061,0.00017073,2]
[335196527,1723972243090,-514.47,0.00017073,2]
[335196528,1723972243100,-537.08453408,0.00017073,2]
[335196529,1723972243109,-500.0,0.00017073,2]
[335196531,1723972243119,-500.0,0.00017073,2]
[335196532,1723972243133,-500.0,0.00017073,2]
[335196533,1723972243142,-505.45642932,0.00017073,2]
[335196534,1723972243152,-500.0,0.00017073,2]
[335196535,1723972243163,-500.0,0.00017073,2]
[335196536,1723972243172,-500.0,0.00017073,2]
[335196537,1723972243182,-500.0,0.00017073,2]
[335196538,1723972243192,-502.03791934,0.00017073,2]
[335196539,1723972243203,-500.0,0.00017073,2]
[335196540,1723972243213,-500.0,0.00017073,2]
[335196542,1723972243222,-500.0,0.00017073,2]
[335196543,1723972243232,-508.1059402,0.00017073,2]
[335196544,1723972243241,-712.42,0.00017073,2]
[335196545,1723972243251,-500.0,0.00017073,2]
[335196546,1723972243261,-435.9610758,0.00017073,2]
[335196547,1723972243270,-500.0,0.00017073,2]
[335196548,1723972243280,-500.0,0.00017073,2]
[335196549,1723972243290,-500.0,0.00017073,2]
[335196550,1723972243299,-500.0,0.00017073,2]
[335196551,1723972243309,-500.0,0.00017073,2]
[335196552,1723972243319,-500.0,0.00017073,2]
[335196554,1723972243329,-515.17274686,0.00017073,2]
[335196556,1723972243338,-504.50137407,0.00017073,2]
[335196558,1723972243348,-500.0,0.00017073,2]
[335196560,1723972243358,-1455.28,0.00017073,2]
[335196562,1723972243368,-520.14077379,0.00017073,2]
[335196563,1723972243379,-500.0,0.00017073,2]
[335196565,1723972243388,-500.0,0.00017073,2]
[335196566,1723972243398,-500.0,0.00017073,2]
[335196567,1723972243407,-825.96,0.00017073,2]
[335196568,1723972243416,-517.2,0.00017073,2]
[335196569,1723972243426,-644.77,0.00017073,2]
[335196570,1723972243435,-500.0,0.00017073,2]
[335196571,1723972243445,-501.4158508,0.00017073,2]
[335196572,1723972243455,-500.0,0.00017073,2]
[335196573,1723972243464,-500.0,0.00017073,2]
[335196574,1723972243473,-500.0,0.00017073,2]
[335196575,1723972243483,-500.96333795,0.00017073,2]
[335196576,1723972243492,-3340.71,0.00017073,2]
[335196577,1723972243501,-500.0,0.00017073,2]
[335196578,1723972243510,-683.24,0.00017073,2]
[335196579,1723972243519,-500.0,0.00017073,2]
[335196580,1723972243528,-500.0,0.00017073,2]
[335196581,1723972243538,-500.0,0.00017073,2]
[335196582,1723972243547,-702.81,0.00017073,2]
[335196583,1723972243556,-509.60882877,0.00017073,2]
[335196584,1723972243566,-500.0,0.00017073,2]
[335196585,1723972243575,-957.5,0.00017073,2]
[335196586,1723972243584,-500.0,0.00017073,2]
[335196587,1723972243594,-500.0,0.00017073,2]
[335196588,1723972243603,-500.0,0.00017073,2]
[335196589,1723972243613,-2320.16,0.00017073,2]
[335196590,1723972243622,-388.24660019,0.00017073,2]
[335196591,1723972243631,-500.0,0.00017073,2]
[335196592,1723972243640,-1234.36,0.00017073,2]
[335196593,1723972243649,-500.0,0.00017073,2]
[335196594,1723972243658,-500.0,0.00017073,2]
[335196595,1723972243667,-500.0,0.00017073,2]
[335196596,1723972243676,-500.0,0.00017073,2]
[335196597,1723972243686,-1016.9,0.00017073,2]
[335196598,1723972243695,-500.0,0.00017073,2]
[335196599,1723972243705,-500.0,0.00017073,2]
[335196600,1723972243714,-500.0,0.00017073,2]
[335196601,1723972243724,-500.0,0.00017073,2]
[335196602,1723972243733,-503.12940545,0.00017073,2]
[335196603,1723972243742,-500.0,0.00017073,2]
[335196604,1723972243752,-500.0,0.00017073,2]
[335196605,1723972243761,-500.0,0.00017073,2]
[335196606,1723972243771,-500.0,0.00017073,2]
[335196607,1723972243781,-679.1,0.00017073,2]
[335196608,1723972243790,-502.26264093,0.00017073,2]
[335196609,1723972243799,-500.0,0.00017073,2]
[335196610,1723972243809,-730.8,0.00017073,2]
[335196611,1723972243818,-950.77,0.00017073,2]
[335196612,1723972243827,-501.88739602,0.00017073,2]
[335196613,1723972243837,-500.0,0.00017073,2]
[335196614,1723972243846,-504.26190343,0.00017073,2]
[335196615,1723972243856,-500.0,0.00017073,2]
[335196616,1723972243865,-500.0,0.00017073,2]
[335196617,1723972243875,-543.53104022,0.00017073,2]
[335196618,1723972243885,-500.0,0.00017073,2]
[335196619,1723972243894,-501.22456477,0.00017073,2]
[335196620,1723972243904,-500.0,0.00017073,2]
[335196621,1723972243914,-500.0,0.00017073,2]
[335196622,1723972243924,-500.0,0.00017073,2]
[335196623,1723972243933,-500.0,0.00017073,2]
[335196624,1723972243943,-651.53,0.00017073,2]
[335196625,1723972243953,-500.0,0.00017073,2]
[335196626,1723972243963,-500.0,0.00017073,2]
[335196627,1723972243972,-1053.09,0.00017073,2]
[335196628,1723972243982,-500.0,0.00017073,2]
[335196629,1723972243991,-500.0,0.00017073,2]
[335196630,1723972244001,-519.06,0.00017073,2]
[335196631,1723972244013,-500.0,0.00017073,2]
[335196632,1723972244025,-500.0,0.00017073,2]
[335196633,1723972244035,-500.0,0.00017073,2]
[335196634,1723972244046,-500.0,0.00017073,2]
[335196635,1723972244057,-500.0,0.00017073,2]
[335196637,1723972244068,-500.0,0.00017073,2]
[335196638,1723972244078,-1056.73,0.00017073,2]
[335196640,1723972244088,-471.66054734,0.00017073,2]
[335196641,1723972244098,-500.0,0.00017073,2]
[335196642,1723972244108,-500.0,0.00017073,2]
[335196643,1723972244118,-693.92,0.00017073,2]
[335196644,1723972244129,-503.82090815,0.00017073,2]
[335196645,1723972244141,-500.0,0.00017073,2]
[335196646,1723972244151,-500.0,0.00017073,2]
[335196647,1723972244161,-500.0,0.00017073,2]
[335196648,1723972244171,-500.0,0.00017073,2]
[335196649,1723972244182,-500.0,0.00017073,2]
[335196650,1723972244193,-202.48729624,0.00017073,2]
[335196651,1723972244203,-500.0,0.00017073,2]
[335196652,1723972244212,-2211.05,0.00017073,2]
[335196653,1723972244221,-500.0,0.00017073,2]
[335196654,1723972244233,-500.0,0.00017073,2]
[335196655,1723972244244,-500.0,0.00017073,2]
[335196656,1723972244256,-907.0,0.00017073,2]
[335196657,1723972244266,-398.32735633,0.00017073,2]
[335196658,1723972244275,-506.2734219,0.00017073,2]
[335196659,1723972244284,-500.0,0.00017073,2]
[335196660,1723972244294,-500.0,0.00017073,2]
[335196661,1723972244304,-504.98050766,0.00017073,2]
[335196662,1723972244313,-524.49331253,0.00017073,2]
[335196663,1723972244322,-505.01363414,0.00017073,2]
[335196664,1723972244331,-500.0,0.00017073,2]
[335196665,1723972244341,-726.36,0.00017073,2]
[335196666,1723972244350,-520.733221,0.00017073,2]
[335196667,1723972244360,-501.47494704,0.00017073,2]
[335196668,1723972244370,-500.0,0.00017073,2]
[335196669,1723972244379,-500.0,0.00017073,2]
[335196670,1723972244389,-500.0,0.00017073,2]
[335196671,1723972244398,-500.0,0.00017073,2]
[335196672,1723972244408,-500.0,0.00017073,2]
[335196673,1723972244418,-780.01,0.00017073,2]
[335196674,1723972244427,-785.81,0.00017073,2]
[335196675,1723972244437,-1109.69,0.00017073,2]
[335196676,1723972244449,-500.0,0.00017073,2]
[335196677,1723972244458,-500.0,0.00017073,2]
[335196678,1723972244468,-500.0,0.00017073,2]
[335196679,1723972244477,-500.0,0.00017073,2]
[335196680,1723972244486,-500.0,0.00017073,2]
[335196681,1723972244496,-500.0,0.00017073,2]
[335196682,1723972244506,-46151.0739289,0.00017082,2]
[335196683,1723972244515,-14728.7032485,0.00017092,2]
[335196684,1723972244524,-150.112233,0.000171,2]
[335196685,1723972244533,-14728.7032485,0.0001716,2]
[335196686,1723972244543,-1147.44527748,0.0001716,2]
[335196687,1723972244551,-191.9731999,0.00017164,2]
[335196688,1723972244560,-5017.1,0.0001719,2]
[335196689,1723972244569,-5017.1,0.0001719,2]
[335196690,1723972244578,-150.112233,0.000172,2]
[335196691,1723972244587,-150.112233,0.000172,2]
[335196692,1723972244596,-5017.1,0.00017244,2]
[335196693,1723972244605,-5017.1,0.00017244,2]
[335196694,1723972244614,-5017.1,0.00017244,2]
[335196695,1723972244623,-5017.1,0.00017244,2]
[335196696,1723972244632,-5017.1,0.00017246,2]
[335196697,1723972244642,-500.0,0.00017253,2]
[335196698,1723972244651,-500.0,0.00017253,2]
[335196699,1723972244660,-5017.1,0.00017253,2]
[335196700,1723972244670,-500.0,0.00017254,2]
[335196701,1723972244679,-500.0,0.00017254,2]
[335196702,1723972244689,-500.0,0.00017254,2]
[335196703,1723972244698,-500.0,0.00017254,2]
[335196704,1723972244706,-500.0,0.00017254,2]
[335196705,1723972244716,-305.87672062,0.00017254,2]
[335196706,1723972244725,-500.0,0.00017255,2]
[335196707,1723972244734,-561.37,0.00017259,2]
[335196708,1723972244743,-505.55,0.00017259,2]
[335196709,1723972244752,-2416.37,0.00017259,2]
[335196710,1723972244761,-762.7,0.00017259,2]
[335196711,1723972244770,-756.06,0.00017259,2]
[335196712,1723972244779,-803.37,0.00017259,2]
[335196713,1723972244788,-815.41,0.00017259,2]
[335196714,1723972244797,-500.0,0.00017259,2]
[335196715,1723972244806,-500.0,0.0001726,2]
[335196716,1723972244909,-500.0,0.0001726,2]
[335196717,1723972244918,-1177.92,0.0001726,2]
[335196718,1723972244927,-500.0,0.0001726,2]
[335196719,1723972244936,-1232.66,0.0001726,2]
[335196720,1723972244945,-1382.39,0.0001726,2]
[335196721,1723972244954,-500.0,0.0001726,2]
[335196722,1723972244963,-1150.83,0.0001726,2]
[335196723,1723972244971,-759.23,0.0001726,2]
[335196724,1723972244980,-4733.68,0.0001726,2]
[335196725,1723972244989,-1343.44,0.0001726,2]
[335196726,1723972244998,-557.79,0.0001726,2]
[335196727,1723972245006,-1110.9,0.0001726,2]
[335196728,1723972245016,-500.0,0.0001726,2]
[335196729,1723972245025,-500.0,0.0001726,2]
[335196730,1723972245034,-500.0,0.0001726,2]
[335196731,1723972245043,-1346.94,0.0001726,2]
[335196732,1723972245052,-1824.26,0.0001726,2]
[335196733,1723972245061,-576.65,0.0001726,2]
[335196734,1723972245070,-500.0,0.0001726,2]
[335196735,1723972245079,-550.17,0.0001726,2]
[335196736,1723972245089,-500.0,0.0001726,2]
[335196737,1723972245098,-242.37070589,0.0001726,2]
[335196738,1723972245106,-1066.33,0.0001726,2]
[335196739,1723972245116,-500.0,0.0001726,2]
[335196740,1723972245127,-6489.01,0.0001726,2]
[335196741,1723972245136,-976.12,0.0001726,2]
[335196742,1723972245145,-877.17,0.0001726,2]
[335196743,1723972245155,-500.0,0.0001726,2]
[335196744,1723972245165,-644.58,0.0001726,2]
[335196745,1723972245174,-500.0,0.0001726,2]
[335196746,1723972245184,-1110.33,0.0001726,2]
[335196747,1723972245193,-500.0,0.0001726,2]
[335196748,1723972245204,-500.0,0.0001726,2]
[335196749,1723972245213,-907.09,0.0001726,2]
[335196750,1723972245223,-500.0,0.0001726,2]
[335196751,1723972245232,-724.89,0.0001726,2]
[335196752,1723972245241,-713.9,0.0001726,2]
[335196753,1723972245251,-500.0,0.0001726,2]
[335196754,1723972245260,-500.0,0.0001726,2]
[335196755,1723972245270,-716.69,0.0001726,2]
[335196756,1723972245280,-500.0,0.0001726,2]
[335196757,1723972245290,-1868.57,0.0001726,2]
[335196758,1723972245300,-500.0,0.0001726,2]
[335196759,1723972245309,-500.0,0.0001726,2]
[335196760,1723972245319,-500.0,0.0001726,2]
[335196761,1723972245328,-692.16,0.0001726,2]
[335196762,1723972245337,-820.93,0.0001726,2]
[335196763,1723972245347,-1308.34,0.0001726,2]
[335196764,1723972245357,-500.0,0.0001726,2]
[335196765,1723972245366,-468.77682635,0.00017263,2]
[335196766,1723972245376,-5017.1,0.00017263,2]
[335196767,1723972245385,-5017.1,0.00017264,2]
[335196768,1723972245394,-881.94,0.00017265,2]
[335196769,1723972245404,-500.0,0.00017265,2]
[335196770,1723972245413,-500.0,0.00017265,2]
[335196771,1723972245423,-500.0,0.00017265,2]
[335196772,1723972245433,-691.19,0.00017265,2]
[335196773,1723972245442,-623.1,0.00017265,2]
[335196774,1723972245452,-500.0,0.00017265,2]
[335196775,1723972245461,-500.0,0.00017265,2]
[335196776,1723972245470,-500.0,0.00017265,2]
[335196777,1723972245480,-571.73,0.00017265,2]
[335196778,1723972245490,-500.0,0.00017265,2]
[335196779,1723972245500,-500.0,0.00017265,2]
[335196780,1723972245510,-512.21931857,0.00017265,2]
[335196781,1723972245519,-733.85,0.00017265,2]
[335196782,1723972245529,-1120.89,0.00017265,2]
[335196783,1723972245538,-500.0,0.00017265,2]
[335196784,1723972245550,-500.0,0.00017265,2]
[335196785,1723972245559,-500.0,0.00017265,2]
[335196786,1723972245568,-743.99,0.00017265,2]
[335196787,1723972245577,-500.0,0.00017265,2]
[335196788,1723972245586,-803.49,0.00017265,2]
[335196789,1723972245595,-500.0,0.00017265,2]
[335196790,1723972245604,-500.0,0.00017265,2]
[335196791,1723972245614,-520.35,0.00017265,2]
[335196792,1723972245623,-500.0,0.00017265,2]
[335196793,1723972245633,-500.0,0.00017265,2]
[335196794,1723972245642,-500.0,0.00017265,2]
[335196795,1723972245651,-932.43,0.00017265,2]
[335196796,1723972245660,-500.0,0.00017265,2]
[335196797,1723972245670,-513.41,0.00017265,2]
[335196798,1723972245679,-500.0,0.00017265,2]
[335196799,1723972245689,-500.0,0.00017265,2]
[335196800,1723972245698,-500.0,0.00017265,2]
[335196801,1723972245707,-500.0,0.00017265,2]
[335196802,1723972245716,-500.0,0.00017265,2]
[335196803,1723972245725,-500.0,0.00017265,2]
[335196804,1723972245735,-500.0,0.00017265,2]
[335196805,1723972245746,-599.68333757,0.00017265,2]
[335196806,1723972245755,-562.7467592,0.00017265,2]
[335196807,1723972245765,-500.0,0.00017265,2]
[335196808,1723972245774,-500.0,0.00017265,2]
[335196809,1723972245784,-500.0,0.00017265,2]
[335196810,1723972245793,-531.34,0.00017265,2]
[335196811,1723972245803,-500.0,0.00017265,2]
[335196812,1723972245812,-500.0,0.00017265,2]
[335196813,1723972245822,-611.95,0.00017265,2]
[335196814,1723972245832,-846.62,0.00017265,2]
[335196815,1723972245842,-833.19,0.00017265,2]
[335196816,1723972245851,-500.0,0.00017265,2]
[335196817,1723972245861,-500.0,0.00017265,2]
[335196818,1723972245870,-500.0,0.00017265,2]
[335196819,1723972245880,-500.0,0.00017265,2]
[335196820,1723972245890,-569.59,0.00017265,2]
[335196821,1723972245899,-681.53,0.00017265,2]
[335196822,1723972245909,-500.0,0.00017265,2]
[335196823,1723972245918,-600.04919493,0.00017265,2]
[335196824,1723972245927,-500.0,0.00017265,2]
[335196825,1723972245937,-505.21419175,0.00017265,2]
[335196826,1723972245946,-1340.45,0.00017265,2]
[335196827,1723972245955,-1122.98,0.00017265,2]
[335196828,1723972245965,-500.0,0.00017265,2]
[335196829,1723972245974,-500.0,0.00017265,2]
[335196830,1723972245984,-560.05,0.00017265,2]
[335196831,1723972245994,-500.0,0.00017265,2]
[335196832,1723972246004,-151.0,0.00017265,2]
[335196833,1723972246013,-151.0,0.00017265,2]
[335196834,1723972246023,-283.61733,0.00017265,2]
[335196835,1723972246033,-283.61733,0.00017265,2]
[335196836,1723972246044,-5017.1,0.00017265,2]
[335196837,1723972246055,-5017.1,0.00017265,2]
[335196838,1723972246065,-5017.1,0.00017265,2]
[335196839,1723972246075,-5017.1,0.00017265,2]
[335196840,1723972246084,-5017.1,0.00017265,2]
[335196841,1723972246094,-5017.1,0.00017265,2]
[335196842,1723972246103,-5017.1,0.00017265,2]
[335196843,1723972246113,-5017.25,0.00017265,2]
[335196844,1723972246123,-500.0,0.00017266,2]
[335196845,1723972246134,-502.82990042,0.00017266,2]
[335196846,1723972246146,-398.80764802,0.00017266,2]
[335196847,1723972246156,-185.56289874,0.00017266,2]
[335196848,1723972246165,-500.0,0.00017266,2]
[335196849,1723972246174,-500.0,0.00017266,2]
[335196850,1723972246185,-503.19221035,0.00017266,2]
[335196852,1723972246197,-500.0,0.00017266,2]
[335196853,1723972246208,-500.0,0.00017266,2]
[335196854,1723972246218,-500.0,0.00017266,2]
[335196855,1723972246227,-500.0,0.00017266,2]
[335196856,1723972246238,-500.0,0.00017266,2]
[335196858,1723972246248,-504.28874436,0.00017266,2]
[335196859,1723972246258,-500.0,0.00017266,2]
[335196861,1723972246268,-500.0,0.00017266,2]
[335196863,1723972246278,-500.0,0.00017266,2]
[335196865,1723972246288,-500.0,0.00017266,2]
[335196867,1723972246298,-500.0,0.00017266,2]
[335196869,1723972246307,-500.0,0.00017266,2]
[335196870,1723972246317,-500.0,0.00017266,2]
[335196872,1723972246329,-500.0,0.00017266,2]
[335196874,1723972246340,-500.0,0.00017266,2]
[335196876,1723972246350,-500.0,0.00017266,2]
[335196877,1723972246360,-500.0,0.00017266,2]
[335196878,1723972246371,-512.97424818,0.00017266,2]
[335196879,1723972246380,-500.0,0.00017266,2]
[335196881,1723972246390,-500.0,0.00017266,2]
[335196883,1723972246399,-500.0,0.00017266,2]
[335196884,1723972246409,-643.29991534,0.00017266,2]
[335196885,1723972246419,-500.0,0.00017266,2]
[335196886,1723972246428,-500.0,0.00017266,2]
[335196887,1723972246438,-506.33476054,0.00017266,2]
[335196889,1723972246448,-500.0,0.00017266,2]
[335196890,1723972246458,-502.01994795,0.00017266,2]
[335196891,1723972246468,-509.9356731,0.00017266,2]
[335196892,1723972246478,-549.38946756,0.00017266,2]
[335196893,1723972246489,-500.0,0.00017266,2]
[335196894,1723972246498,-505.09928173,0.00017266,2]
[335196895,1723972246508,-500.0,0.00017266,2]
[335196896,1723972246518,-509.92772392,0.00017266,2]
[335196897,1723972246527,-500.0,0.00017266,2]
[335196898,1723972246635,-508.62149033,0.00017266,2]
[335196899,1723972246645,-500.0,0.00017266,2]
[335196900,1723972246655,-500.0,0.00017266,2]
[335196901,1723972246664,-500.0,0.00017266,2]
[335196902,1723972246675,-500.0,0.00017266,2]
[335196903,1723972246685,-505.68019105,0.00017266,2]
[335196904,1723972246695,-500.0,0.00017266,2]
[335196905,1723972246705,-636.84387548,0.00017266,2]
[335196906,1723972246715,-500.0,0.00017266,2]
[335196907,1723972246726,-500.0,0.00017266,2]
[335196908,1723972246735,-505.24353292,0.00017266,2]
[335196909,1723972246745,-500.0,0.00017266,2]
[335196910,1723972246755,-500.0,0.00017266,2]
[335196911,1723972246764,-500.0,0.00017266,2]
[335196912,1723972246774,-500.0,0.00017266,2]
[335196913,1723972246783,-500.0,0.00017266,2]
[335196914,1723972246793,-505.51210129,0.00017266,2]
[335196915,1723972246803,-509.76833442,0.00017266,2]
[335196916,1723972246813,-508.68572364,0.00017266,2]
[335196917,1723972246822,-502.12097442,0.00017266,2]
[335196918,1723972246831,-500.0,0.00017266,2]
[335196919,1723972246841,-379.85518857,0.00017266,2]
[335196920,1723972247082,-500.0,0.00016438,2]
[335196921,1723972247092,-122.41788281,0.00017266,2]
[335196922,1723972247101,-505.25,0.00017266,2]
[335196923,1723972247110,-500.0,0.00017266,2]
[335196924,1723972247120,-500.0,0.00017266,2]
[335196925,1723972247132,-962.99,0.00017266,2]
[335196926,1723972247142,-501.3766439,0.00017266,2]
[335196927,1723972247152,-500.0,0.00017266,2]
[335196928,1723972247162,-500.0,0.00017266,2]
[335196929,1723972247171,-327.78083474,0.00017266,2]
[335196930,1723972247181,-500.0,0.00017266,2]
[335196931,1723972247190,-500.0,0.00017266,2]
[335196932,1723972247200,-500.93919286,0.00017266,2]
[335196933,1723972247211,-500.0,0.00017266,2]
[335196934,1723972247221,-511.28577531,0.00017266,2]
[335196935,1723972247230,-501.3363055,0.00017266,2]
[335196936,1723972247240,-412.72989913,0.00017266,2]
[335196937,1723972247249,-500.0,0.00017266,2]
[335196938,1723972247258,-500.0,0.00017266,2]
[335196939,1723972247267,-500.0,0.00017266,2]
[335196940,1723972247276,-500.0,0.00017266,2]
[335196941,1723972247285,-500.0,0.00017266,2]
[335196942,1723972247295,-528.17646954,0.00017266,2]
[335196943,1723972247305,-500.0,0.00017266,2]
[335196944,1723972247314,-500.0,0.00017266,2]
[335196945,1723972247324,-500.0,0.00017266,2]
[335196946,1723972247334,-500.0,0.00017266,2]
[335196947,1723972247343,-500.0,0.00017266,2]
[335196948,1723972247353,-500.0,0.00017266,2]